Workbook

Sheet Data Entry
C1: DATA ENTRY FOR SIZING OF TCAE COUPLINGS | N1: Customer Name: | T1: Date: | X1: Document Revision History | AF1: TCAE R MODEL | AG1: DBSE mm | AI1: DBSE inches
N2: Distributor Name: | X2: A | Y2: Draft release | Z2: 2019-12-06 | AG2: Min | AH2: Max | AI2: Min | AJ2: Max
E3: DESIGN LIFE CALCULATION | X3: B | Y3: warranty period formula changed | Z3: 2019-12-19 | AF3: TCAE-0-R | AG3: 82 | AH3: 90 | AI3: =AG3/25.4 -> 3.23 | AJ3: =AH3/25.4 -> 3.54
E4: SELECTED | G4: HOURS | H4: DAYS | I4: YEARS | L4: The DBSE (Minimum and Maximum) for our TCAE-R; TCAE-L and TCAE-CM Series Couplings are listed in the columns AF-AH on the right. We make smaller DBSE's with our TCAE-S Range but these are to order. If you don't fit to our normal DBSE sizes, can you move your motor or driven shaft. Print and send to us or call +61405 970 995. | V4: YES | X4: C | Y4: Procedure page | Z4: 2019-12-23 | AF4: TCAE-1-R | AG4: 130 | AH4: 147 | AI4: =AG4/25.4 -> 5.12 | AJ4: =AH4/25.4 -> 5.79
B5: REDUCED LIFE | E5: =IF('Model tables'!AD28=1,'Model tables'!AO28,+IF('Model tables'!AD33=1,'Model tables'!AF33,+IF('Model tables'!AD38=1,'Model tables'!AF38,+IF('Model tables'!AD43=1,'Model tables'!AF43)))) ->  | G5: =IF('Model tables'!AD28=1,'Model tables'!AM28,+IF('Model tables'!AD33=1,'Model tables'!AH33,+IF('Model tables'!AD38=1,'Model tables'!AH38,+IF('Model tables'!AD43=1,'Model tables'!AH43)))) ->  | H5: =G5/hours ->  | I5: =+G5/hourpa ->  | X5: 2 | Y5: Releasaed | Z5: 2019-12-30 | AF5: TCAE-2-R | AG5: 136 | AH5: 162 | AI5: 5.35 | AJ5: 6.38
B6: RECOMMENDED | E6: =IF('Model tables'!AD28=1,'Model tables'!AO29,+IF('Model tables'!AD33=1,'Model tables'!AF34,+IF('Model tables'!AD38=1,'Model tables'!AF39,+IF('Model tables'!AD43=1,'Model tables'!AF44)))) ->  | G6: =IF(IF('Model tables'!Z32=1,'Model tables'!AI32,+IF('Model tables'!Z37=1,'Model tables'!AD37,+IF('Model tables'!Z42=1,'Model tables'!AD42,+IF('Model tables'!Z47=1,'Model tables'!AD47))))<hourpa*4,IF('Model tables'!Z32=1,'Model tables'!AI32,+IF('Model tables'!Z37=1,'Model tables'!AD37,+IF('Model tables'!Z42=1,'Model tables'!AD42,+IF('Model tables'!Z47=1,'Model tables'!AD47)))),hourpa*4) -> 0 | H6: =+G6/hours ->  | I6: =+G6/hourpa ->  | V6: NO | X6: 3 | Y6: fixed error in R series | Z6: 2020-01-19 | AF6: TCAE-3-R | AG6: 240 | AH6: 270 | AI6: 9.45 | AJ6: 10.63
B7: EXTENDED LIFE | E7: =IF('Model tables'!AD28=1,'Model tables'!AO30,+IF('Model tables'!AD33=1,'Model tables'!AF35,+IF('Model tables'!AD38=1,'Model tables'!AF40,+IF('Model tables'!AD43=1,'Model tables'!AF45)))) ->  | G7: =IF(IF('Model tables'!Z32=1,'Model tables'!AI32,+IF('Model tables'!Z37=1,'Model tables'!AD37,+IF('Model tables'!Z42=1,'Model tables'!AD42,+IF('Model tables'!Z47=1,'Model tables'!AD47))))<hourpa*5,IF('Model tables'!Z32=1,'Model tables'!AI32,+IF('Model tables'!Z37=1,'Model tables'!AD37,+IF('Model tables'!Z42=1,'Model tables'!AD42,+IF('Model tables'!Z47=1,'Model tables'!AD47)))),hourpa*5) -> 0 | H7: =+G7/hours ->  | I7: =+G7/hourpa ->  | X7: 4 | Y7: Changed Layout | Z7: 2020-04-23 | AF7: TCAE-4-R | AG7: 276 | AH7: 285 | AI7: 10.87 | AJ7: 11.22
X8: 5 | Y8: fixed error in R series | Z8: 2020-05-07 | AF8: TCAE-5-R | AG8: 276 | AH8: 300 | AI8: 10.87 | AJ8: 11.81
B9: MOTOR DETAILS | G9: DRIVEN SHAFT DETAILS | L9: IF GEARBOX CONNECTED | Q9: MACHINE OPERATIONAL DUTY TIME | X9: 6 | Y9: fixed error in R series | Z9: 21/05/202o | AF9: TCAE-6-R | AG9: 291 | AH9: 312 | AI9: 11.46 | AJ9: 12.28
X10: 7 | Y10: mm & inches added | Z10: 2020-05-23 | AF10: TCAE-7-R | AG10: 310 | AH10: 330 | AI10: 12.20 | AJ10: 12.99
AF11: TCAE-8-R | AG11: 326 | AH11: 344 | AI11: 12.83 | AJ11: 13.54
AF12: TCAE L MODEL | AG12: DBSE | AI12: DBSE
AG13: Min | AH13: Max | AI13: Min | AJ13: Max
AF14: TCAE-0-L | AG14: 90 | AH14: 1500 | AI14: =AG14/25.4 -> 3.54 | AJ14: =AH14/25.4 -> 59.06
AF15: TCAE-1-L | AG15: 147 | AH15: 1800 | AI15: =AG15/25.4 -> 5.79 | AJ15: =AH15/25.4 -> 70.87
AF16: TCAE-2-L | AG16: 162 | AH16: 2000 | AI16: 6.38 | AJ16: 78.74
G17: DISTANCE BETWEEN SHAFT ENDS (MOTOR TO DRIVEN SHAFT OR GEARBOX TO DRIVEN SHAFT | J17: =D21 -> Click Here | AF17: TCAE-3-L | AG17: 270 | AH17: 2000 | AI17: 10.63 | AJ17: 78.74
B18: TYPE | C18: Click Here | AF18: TCAE-4-L | AG18: 285 | AH18: 2000 | AI18: 11.22 | AJ18: 78.74
B19: POWER | D19: Click Here | L19: SHAFT DIAMETER | N19: =D21 -> Click Here | Q19: HOURS PER DAY | AF19: TCAE-5-L | AG19: 300 | AH19: 2000 | AI19: 11.81 | AJ19: 78.74
B20: SPEED | D20: RPM | G20: DRIVEN SHAFT DIAMETER | J20: =D21 -> Click Here | Q20: DAYS PER WEEK | AF20: TCAE-6-L | AG20: 312 | AH20: 2000 | AI20: 12.28 | AJ20: 78.74
B21: SHAFT DIAMETER | D21: Click Here | G21: MACHINE DUTY SERVICE TYPE | I21: Click Here | J21: See Examples Below | L21: RATIO : 1 | Q21: WEEKS PER YEAR | AF21: TCAE-7-L | AG21: 330 | AH21: 2000 | AI21: 12.99 | AJ21: 78.74
B22: SHAFT ANGLE DEGREES | D22: <5⁰ | G22: MACHINE SERVICE FACTOR | I22: =VLOOKUP(I21,Calculations!G14:H20,2) ->  | L22: FINAL SPEED | M22: =IF(RATIO="","",+output_speed) ->  | Q22: TOTAL HOURS PA | S22: =hours*days*weeks -> 0 | AF22: TCAE-8-L | AG22: 344 | AH22: 2000 | AI22: 13.54 | AJ22: 78.74
AF23: TCAE CM MODEL | AG23: DBSE | AI23: DBSE
AG24: Min | AH24: Max | AI24: Min | AJ24: Max
AF25: TCAE-9-CM | AG25: 500 | AH25: 2500 | AI25: =AG25/25.4 -> 19.69 | AJ25: =AH25/25.4 -> 98.43
AF26: TCAE-10-CM | AG26: 550 | AH26: 2500 | AI26: =AG26/25.4 -> 21.65 | AJ26: =AH26/25.4 -> 98.43
AF27: TCAE-11-CM | AG27: 600 | AH27: 3000 | AI27: 23.62 | AJ27: 118.11
AF28: TCAE-12-CM | AG28: 650 | AH28: 3000 | AI28: 25.59 | AJ28: 118.11
AF29: TCAE-13-CM | AG29: 700 | AH29: 3000 | AI29: 27.56 | AJ29: 118.11
AF30: TCAE-14-CM | AG30: 700 | AH30: 3000 | AI30: 27.56 | AJ30: 118.11
AF31: TCAE S MODEL | AG31: Dia | AI31: Dia
AG32: Max | AI32: Max
AF33: TCAE-6-S | AG33: 60 | AI33: =AG33/25.4 -> 2.36
AF34: TCAE-7-S | AG34: 80 | AI34: 3.15
AF35: TCAE-8-S | AG35: 90 | AI35: 3.54
AF36: TCAE-9-S | AG36: 130 | AI36: 5.12
AF37: TCAE-10-S | AG37: 145 | AI37: 5.71
AF38: TCAE-11-S | AG38: 180 | AI38: 7.09
AF39: TCAE-12-S | AG39: 200 | AI39: 7.87
AF40: TCAE-13-S | AG40: 190 | AI40: 7.48
AF41: TCAE-14-S | AG41: 250 | AI41: 9.84

Sheet Calculations (hidden)
B2: 2. Gather the data entry values to perform initial calculations | Q2: LISTS | R2: Fomula
B3: Power | C3: =+POWER ->  | D3: kW | G3: Tables for constants
B4: Speed | C4: =+SPEED -> 0 | D4: rpm | G4: Machine service factor K1 | J4: time factor K2 | M4: Angle factor K3 | Q4: Power Source | R4: kw to BHP
B5: Gear ratio | C5: =+IF(+RATIO=0,1,+RATIO) -> 1 | G5: Motor type | H5: K1m | J5: hpd | K5: K2 | M5: Angle | N5: K3bjd | O5: K3doj | Q5: Click Here
B6: output speed | C6: =+C4/C5 -> 0 | D6: rpm | G6: Click Here | J6: 2 | K6: 0.63 | M6: 0 | N6: 0.99 | O6: 0.99 | Q6: kW
G7: Diesel 3cyl or less | H7: 3 | J7: 4 | K7: 0.8 | M7: 1 | N7: 0.98 | O7: 0.94 | Q7: BHP | R7: =ROUNDUP(IF('Data Entry'!D19="click Here","",IF('Data Entry'!D19="kW",'Data Entry'!C19,IF('Data Entry'!D19="BHP",'Data Entry'!C19/1.341,0))),1) -> 
B8: Motor type | C8: =+TYPE -> Click Here | G8: Diesel 4+ cyl | H8: 2 | J8: 6 | K8: 0.91 | M8: 2 | N8: 0.96 | O8: 0.89
G9: Electric motor | H9: 1 | J9: 8 | K9: 1 | M9: 3 | N9: 0.94 | O9: 0.85
B10: Machine type | C10: =+MSF -> Click Here | G10: Petrol 3cyl or less | H10: 1.5 | J10: 10 | K10: 1.08 | M10: 4 | N10: 0.92 | O10: 0.82 | Q10: Size | R10: mm to inches
C11: =+hours -> 0 | D11: hpd | G11: Petrol 4+cyl | H11: 1.25 | J11: 12 | K11: 1.15 | M11: 5 | N11: 0.9 | O11: 0.78 | Q11: Motor shaft | R11: =ROUNDUP(IF('Data Entry'!D21="click Here",0,IF('Data Entry'!D21="mm",'Data Entry'!C21,IF('Data Entry'!D21="inches",'Data Entry'!C21*25.4,0))),0) -> 0
C12: =+days -> 0 | D12: dpw | G12: Turbine | H12: 1 | J12: 14 | K12: 1.2 | M12: 6 | N12: 0.88 | O12: 0.75 | Q12: gear shaft dia | R12: =ROUNDUP(IF('Data Entry'!N19="click Here",0,IF('Data Entry'!N19="mm",'Data Entry'!M19,IF('Data Entry'!N19="inches",'Data Entry'!M19*25.4,0))),0) -> 0
C13: =+weeks -> 0 | D13: wpa | G13: Driven type | H13: K1d | J13: 16 | K13: 1.26 | Q13: Driven shaft | R13: =ROUNDUP(IF('Data Entry'!J20="click Here",0,IF('Data Entry'!J20="mm",'Data Entry'!I20,IF('Data Entry'!J20="inches",'Data Entry'!I20*25.4,0))),0) -> 0
G14: extreme shock | H14: 3 | J14: 18 | K14: 1.31 | Q14: DBSE | R14: =ROUNDUP(IF('Data Entry'!J17="click Here",0,IF('Data Entry'!J17="mm",'Data Entry'!I17,IF('Data Entry'!J17="inches",'Data Entry'!I17*25.4,0))),0) -> 0
B15: Motor shaft | C15: =+DriveShaftdia. -> 0 | D15: mm | G15: heavy duty | H15: 2 | J15: 20 | K15: 1.35
B16: gear shaft dia | C16: =+gearshaftdia -> 0 | D16: mm | G16: light duty | H16: 1.25 | J16: 22 | K16: 1.4 | Q16: Size
B17: Driven shaft | C17: =+DrivenShaftdia. -> 0 | D17: mm | G17: medium duty | H17: 1.75 | J17: 24 | K17: 1.44 | Q17: Click Here
B18: DBSE | C18: =+DBSE. -> 0 | D18: mm | G18: moderate duty | H18: 1.5 | Q18: inches
B19: Angle | C19: =+ANGLE -> 0 | D19: degs | G19: Smooth | H19: 1 | Q19: mm
G20: very heavy duty | H20: 2.5
A22: Calculations: | G22: For List only In Procedure V24
B23: Motor torque | C23: =+C3*9550/C4 ->  | D23: Nm | G23: Click Here
B24: Gear torque | C24: =+C23*C5 ->  | D24: Nm | G24: Smooth | H24: 1
G25: Light Duty | H25: 1.25
B26: Drive torque | C26: =+MAX(C23:C24) ->  | D26: Nm | G26: Moderate Duty | H26: 1.5
G27: Medium Duty | H27: 1.75
B28: Machine Service Factor K1 | G28: Heavy Duty | H28: 2
B29: K1m | C29: =+VLOOKUP(C8,G7:H12,2) ->  | G29: Very Heavy Duty | H29: 2.5
B30: K1d | C30: =+VLOOKUP(C10,G14:H20,2) ->  | G30: Extreme Shock | H30: 3
B32: K1 | C32: =+MAX(C29:C30) -> 
B34: Operating time factor K2
B35: K2 | C35: =+VLOOKUP(C11,J6:K17,2) -> 
B37: Angle factor K3
B38: K3 BJD series | C38: =+VLOOKUP(C19,M6:O12,2) -> 0.99
B39: K3 DOJ series | C39: =+VLOOKUP(C19,M6:O12,3) -> 0.99
A42: Effective Torque calculation
B43: Teff = | C43: =+C26*C32*C35/C38 ->  | D43: Nm | E43: assume for BJD series
B44: Teff = | C44: =+C26*C32*C35/C39 ->  | D44: Nm | E44: assume for DOJ series
A46: Derate torque for actual power usage
B47: Load capacity factor | C47: 70%
A49: Final torque effective BJD | C49: =+C43*C47 ->  | D49: Nm
A50: Final torque effective DOJ | C50: =+C44*C47 -> 

Sheet Formulas (hidden)
A1: Calculation of coupling type from data entry page
A2: final speed | B2: =+output_speed -> 0 | C2: rpm
A3: operational hours | B3: =+Calculations!C11 -> 0 | C3: hpd
A4: equiv torque BJD | B4: =+Calculations!C49 ->  | C4: Nm
A5: equiv torque DOJ | B5: =+Calculations!C50 ->  | C5: Nm | G5: Initial selection | H5: life hrs | I5: life days | J5: life yrs
A6: warranty period | B6: 1 | C6: years | D6: =+hourpa*Formulas!B6 -> 0 | E6: hrs | F6: LESSER | G6: =INDEX(A12:A29,MATCH(G7,A12:A29,0)-1,1) ->  | H6: =+VLOOKUP(G6,A12:C29,3) ->  | I6: =+H6/hours ->  | J6: =+H6/(hourpa) -> 
A7: warranty period | B7: 1 | C7: years | D7: =+hourpa*Formulas!B7 -> 0 | E7: hrs | F7: IDEAL | G7: =+IF(D7<C12,A12,+IF(D7<C13,A13,+IF(D7<C14,A14,+IF(D7<C15,A15,+IF(D7<C16,A16,+IF(D7<C17,A17,+IF(D7<C18,A18,+IF(D7<C19,A19,+IF(D7<C20,A20,+IF(D7<C21,A21,+IF(D7<C22,A22,+IF(D7<C23,A23,+IF(D7<C24,A24,+IF(D7<C25,A25,+IF(D7<C26,A26,+IF(D7<C27,A27,+IF(D7<C28,A28,+IF(D7<C29,A29,A30)))))))))))))))))) ->  | H7: =+VLOOKUP(G7,A12:C29,3) ->  | I7: =+H7/hours ->  | J7: =+H7/(hourpa) -> 
A8: warranty period | B8: 1 | C8: years | D8: =+hourpa*Formulas!B8 -> 0 | E8: hrs | F8: GREATER | G8: =INDEX(A12:A29,MATCH(G7,A12:A29,0)+1,1) ->  | H8: =+VLOOKUP(G8,A12:C29,3) ->  | I8: =+H8/hours ->  | J8: =+H8/(hourpa) -> 
A10: Calculated torque limit values at speed | L10: Working torque vs speed
A11: Coupling | B11: limit torque | C11: life calc hrs | E11: torque | F11: at speed | G11: torque | H11: at speed | I11: max speed | K11: Coupling | L11: range 0-1000 rpm | N11: equation | O11: torque at | P11: torque at | Q11: range 1000-4000 rpm | S11: equation | T11: torque at
A12: BC75 | B12: =IF(B2<1000,395.68*(B2^-0.187),1012.1*(B2^-0.329)) ->  | C12: =+(B12/$B$4)^3*7200 ->  | E12: =+L13 -> 245 | F12: =+M13 -> 13 | G12: =+O13 -> 109 | H12: 1000 | I12: 3600 | L12: Torque | M12: Speed | N12: 0-1000 rpm | O12: 1000 | P12: 10 | Q12: Torque | R12: Speed | S12: 1000-4000 rpm | T12: 4000 | U12: rpm
A13: BJ095 | B13: =IF(B2<1000,940.1*(B2^-0.204),1661.6*(B2^-0.292)) ->  | C13: =+(B13/$B$4)^3*7200 ->  | E13: =+L16 -> 588 | F13: =+M16 -> 10 | G13: =+O16 -> 230 | H13: 1000 | I13: 3600 | K13: BC75 | L13: 245 | M13: 13 | N13: y = 395.68x-0.187 | O13: =395.68*(O12^-0.187) -> 109 | P13: =395.68*(P12^-0.187) -> 257 | Q13: 98 | R13: 1200 | S13: y = 1012.1x-0.329 | T13: =1012.1*(T12^-0.329) -> 66
A14: BJ125 | B14: =IF(B2<1000,2019.8*(B2^-0.185),5699.8*(B2^-0.335)) ->  | E14: =+L19 -> 981 | F14: =+M19 -> 50 | G14: =+O19 -> 563 | H14: 1000 | I14: 3600 | L14: 147 | M14: 200 | Q14: 78 | R14: 2400
A15: BJ150 | B15: =IF(B2<1000,3680.8*(B2^-0.201),6144.4*(B2^-0.275)) ->  | E15: =+L22 -> 1960 | F15: =+M22 -> 23 | G15: =+O22 -> 918 | H15: 1000 | I15: 3000
A16: BJ175 | B16: =IF(B2<1000,6101.9*(B2^-0.209),15026*(B2^-0.339)) ->  | E16: =+L25 -> 2940 | F16: =+M25 -> 33 | G16: =+O25 -> 1440 | H16: 1000 | I16: 3000 | K16: BJ95 | L16: 588 | M16: 10 | N16: y = 940.1x-0.204 | O16: =940.1*(O12^-0.204) -> 230 | P16: =940.1*(P12^-0.204) -> 588 | Q16: 196 | R16: 1500 | S16: y = 1661.6x-0.292 | T16: =1661.6*(T12^-0.292) -> 147
A17: BJ200 | B17: =IF(B2<1000,8596.5*(B2^-0.19),31800*(B2^-0.379)) ->  | E17: =+L28 -> 3920 | F17: =+M28 -> 62 | G17: =+O28 -> 2314 | H17: 1000 | I17: 3000 | L17: 294 | M17: 300 | Q17: 147 | R17: 4000
A18: BJ225 | B18: =IF(B2<1000,12361*(B2^-0.2),30734*(B2^-0.332)) ->  | E18: =+L31 -> 6867 | F18: =+M31 -> 19 | G18: =+O31 -> 3105 | H18: 1000 | I18: 1800
A19: BJ250 | B19: =IF(B2<1000,15962*(B2^-0.184),51095*(B2^-0.352)) ->  | E19: =+L34 -> 9810 | F19: =+M34 -> 14 | G19: =+O34 -> 4478 | H19: 1000 | I19: 1800 | K19: BJ125 | L19: 981 | M19: 50 | N19: y = 2019.8x-0.185 | O19: =2019.8*(O12^-0.185) -> 563 | P19: =2019.8*(P12^-0.185) -> 1319 | Q19: =50*9.81 -> 491 | R19: 1500 | S19: y = 5699.8x-0.335 | T19: =5699.8*(T12^-0.335) -> 354
A20: BJ300 | B20: =+IF(B2<1000,19897*(B2^-0.176),71535*(B2^-0.361)) ->  | E20: =+L37 -> 9810 | F20: =+M37 -> 55 | G20: =+O37 -> 5899 | H20: 1000 | I20: 1800 | L20: 588 | M20: 800 | Q20: 353 | R20: 4000
A21: =+K39 -> DOJ 225 | B21: =+IF(B2<=I21,8794*(B2^-0.193)) ->  | C21: =+(B21/$B$5)^3*7200 ->  | E21: =+L39 -> 5640 | F21: =+M39 -> 10 | G21: =+O39 -> 2318 | H21: =+M40 -> 1000 | I21: 1800
A22: =+K42 -> DOJ 250 | B22: =+IF(B2<=I22,13805*(B2^-0.195)) ->  | E22: =+L42 -> 8820 | F22: =+M42 -> 10 | G22: =+O42 -> 3590 | H22: =+M43 -> 1000 | I22: 1800 | K22: BJ150 | L22: 1960 | M22: 23 | N22: y = 3680.8x-0.201 | O22: =3680.8*(O12^-0.201) -> 918 | P22: =3680.8*(P12^-0.201) -> 2317 | Q22: =+O22 -> 918 | R22: =+O12 -> 1000 | S22: y = 6144.4x-0.275 | T22: =6144.4*(T12^-0.275) -> 628
A23: =+K45 -> DOJ 300 | B23: =+IF(B2<=I23,17989*(B2^-0.194)) ->  | E23: =+L45 -> 11500 | F23: =+M45 -> 10 | G23: =+O45 -> 4710 | H23: =+M46 -> 1000 | I23: 1800 | L23: 981 | M23: 720 | Q23: 627 | R23: 4000
A24: DOJ350 | B24: =+IF(B2<=I24,23502*(B2^-0.149)) ->  | E24: =$L$48 -> 18100 | F24: =$M$48 -> 10 | G24: =$O$48 -> 8397 | H24: 1000 | I24: 1800
A25: DOJ400 | B25: =+IF(B2<=I25, 48453*(B2^-0.217)) ->  | E25: =$L$51 -> 26900 | F25: =$M$51 -> 10 | G25: =$O$51 -> 10822 | H25: 1000 | I25: 1800 | K25: BJ175 | L25: 2940 | M25: 33 | N25: y = 6101.9x-0.209 | O25: =6101.9*(O12^-0.209) -> 1440 | P25: =6101.9*(P12^-0.209) -> 3771 | Q25: =+O25 -> 1440 | R25: =+O12 -> 1000 | S25: y = 15026x-0.339 | T25: =15026*(T12^-0.339) -> 903
A26: DOJ450 | B26: =+IF(B2<=I26,76118*(B2^-0.245)) ->  | E26: =$L$54 -> 38300 | F26: =$M$54 -> 10 | G26: =$O$54 -> 14012 | H26: 1000 | I26: 1800 | L26: 1960 | M26: 230 | Q26: 981 | R26: 3100
A27: DOJ500 | B27: =+IF(B2<=I27,86221*(B2^-0.189)) ->  | E27: =$L$57 -> 52700 | F27: =$M$57 -> 10 | G27: =$O$57 -> 23368 | H27: 1000 | I27: 1800
A28: DOJ550 | B28: =+IF(B2<=I28,107025*(B2^-0.176)) ->  | E28: =$L$60 -> 70400 | F28: =$M$60 -> 10 | G28: =$O$60 -> 31731 | H28: 1000 | I28: 1800 | K28: BJ200 | L28: 3920 | M28: 62 | N28: y = 8596.5x-0.19 | O28: =8596.5*(O12^-0.19) -> 2314 | P28: =8596.5*(P12^-0.19) -> 5550 | Q28: =+O28 -> 2314 | R28: =+O12 -> 1000 | S28: y = 31800x-0.379 | T28: =31800*(T12^-0.379) -> 1372
A29: DOJ625 | B29: =+IF(B2<=I29,135671*(B2^-0.17)) ->  | E29: =$L$63 -> 99000 | F29: =$M$63 -> 10 | G29: =$O$63 -> 41926 | H29: 1000 | I29: 1800 | L29: 2452 | M29: 730 | Q29: 1471 | R29: 3300
A30: n/a
K31: BJ225 | L31: 6867 | M31: 19 | N31: y = 12361x-0.2 | O31: =12361*(O12^-0.2) -> 3105 | P31: =12361*(P12^-0.2) -> 7799 | Q31: =+O31 -> 3105 | R31: =+O12 -> 1000 | S31: y = 30734x-0.332 | T31: =30734*(T12^-0.332) -> 1958
A32: HD Series | L32: 3920 | M32: 315 | Q32: 1960 | R32: 4000
A33: Model | B33: TCAE | C33: Speed Max
A34: DOX 225F | B34: TCAE-04-HD | C34: 3000 | K34: BJ250 | L34: 9810 | M34: 14 | N34: y = 15962x-0.184 | O34: =15962*(O12^-0.184) -> 4478 | P34: =15962*(P12^-0.184) -> 10449 | Q34: =+O34 -> 4478 | R34: =+O12 -> 1000 | S34: y = 51095x-0.352 | T34: =51095*(T12^-0.352) -> 2757
A35: DOX 250F | B35: TCAE-05-HD | C35: 3000 | L35: 4905 | M35: 600 | Q35: 2940 | R35: 3300
A36: DOX 285F | B36: TCAE-06-HD | C36: 3000
A37: DOX 300F | B37: TCAE-07-HD | C37: 3000 | K37: BJ300 | L37: 9810 | M37: 55 | N37: y = 19897x-0.176 | O37: =19897*(O12^-0.176) -> 5899 | P37: =19897*(P12^-0.176) -> 13267 | Q37: =+O37 -> 5899 | R37: =+O12 -> 1000 | S37: y = 71535x-0.361 | T37: =71535*(T12^-0.361) -> 3582
A38: DOX 315F | B38: TCAE-08-HD | C38: 3000 | L38: 5880 | M38: 1000 | Q38: 3920 | R38: 3100
A39: DOX 350F | B39: TCAE-09-HD | C39: 3000 | K39: DOJ 225 | L39: 5640 | M39: 10 | N39: y = 8794x-0.193 | O39: =8794*(O12^-0.193) -> 2318 | P39: =8794*(P12^-0.193) -> 5639
A40: DOX 390F | B40: TCAE-10-HD | C40: 3000 | L40: 2320 | M40: 1000
A41: DOX440F | B41: TCAE-11-HD | C41: 2500
A42: DOX 490F | B42: TCAE-12-HD | C42: 2500 | K42: DOJ 250 | L42: 8820 | M42: 10 | N42: y = 13805x-0.195 | O42: =13805*(O12^-0.195) -> 3590 | P42: =13805*(P12^-0.195) -> 8811
A43: DOX550F | B43: TCAE-13-HD | C43: 2000 | L43: 3600 | M43: 1000
A44: DOX625F | B44: TCAE-14-HD | C44: 2000
K45: DOJ 300 | L45: 11500 | M45: 10 | N45: y = 17989x-0.194 | O45: =17989*(O12^-0.194) -> 4710 | P45: =17989*(P12^-0.194) -> 11508
A46: S series | L46: 4700 | M46: 1000
A47: Model | B47: limit torque | C47: life calc hrs | D47: BORE d | E47: TCAE MODEL | F47: weight | G47: dia
D48: max | F48: kgs | G48: mm | K48: DOJ350 | L48: 18100 | M48: 10 | N48: y = 23502x-0.149 | O48: =23502*(O12^-0.149) -> 8397 | P48: =23502*(P12^-0.149) -> 16676
A49: BC225 - F | B49: =5977.3*($B$2^-0.214) ->  | C49: =+(B49/$B$4)^3*7200 ->  | D49: 60 | E49: TCAE-6-S | F49: 30 | G49: 244 | L49: =(9810-7850)/2+7850 -> 8830 | M49: 1000
A50: BC240 - F | B50: =8433*($B$2^-0.212) ->  | C50: =+(B50/$B$4)^3*7200 ->  | D50: 80 | E50: TCAE-7-S | F50: 39 | G50: 272
A51: BC287 - F | B51: =14994*($B$2^-0.21) ->  | D51: 90 | E51: TCAE-8-S | F51: 50 | G51: 292 | K51: DOJ400 | L51: 26900 | M51: 10 | N51: y = 48453x-0.217 | O51: =48453*(O12^-0.217) -> 10822 | P51: =48453*(P12^-0.217) -> 29398
A52: BC350 - F | B52: =24172*($B$2^-0.21) ->  | D52: 130 | E52: TCAE-9-S | F52: 74 | G52: 336 | L52: 11000 | M52: 1000
A53: BC410 - F | B53: =36373*($B$2^-0.209) ->  | D53: 145 | E53: TCAE-10-S | F53: 103 | G53: 376
A54: BC450 - F | B54: =50250*($B$2^-0.202) ->  | D54: 180 | E54: TCAE-11-S | F54: 137 | G54: 420 | K54: DOJ450 | L54: 38300 | M54: 10 | N54: y = 76118x-0.245 | O54: =76118*(O12^-0.245) -> 14012 | P54: =76118*(P12^-0.245) -> 43300
A55: BC500 - F | B55: =69123*($B$2^-0.202) ->  | D55: 200 | E55: TCAE-12-S | F55: 181 | G55: 462 | L55: 15700 | M55: 1000
A56: BC550 - F | B56: =92168*($B$2^-0.201) ->  | D56: 190 | E56: TCAE-13-S | F56: 226 | G56: 504
A57: BC600 - F | B57: =166875*($B$2^-0.201) ->  | D57: 250 | E57: TCAE-14-S | F57: 274 | G57: 548 | K57: DOJ500 | L57: 52700 | M57: 10 | N57: y = 86221x-0.189 | O57: =86221*(O12^-0.189) -> 23368 | P57: =86221*(P12^-0.189) -> 55797
L58: 21700 | M58: 1000
K60: DOJ550 | L60: 70400 | M60: 10 | N60: y = 107025x-0.176 | O60: =107025*(O12^-0.176) -> 31731 | P60: =107025*(P12^-0.176) -> 71365
L61: 29000 | M61: 1000
K63: DOJ625 | L63: 99000 | M63: 10 | N63: y = 135671x-0.17 | O63: =135671*(O12^-0.17) -> 41926 | P63: =135671*(P12^-0.17) -> 91725
L64: 40700 | M64: 1000
K66: BC225 | N66: y = 5977.3x-0.214
K67: BC240 | N67: y = 8433x-0.212
K68: BC287 | N68: y = 14994x-0..21
K69: BC350 | N69: y = 24172x-0.21
K70: BC410 | N70: y = 36373x-0.209
K71: BC450 | N71: y = 50250x-0.202
K72: BC500 | N72: y = 69123x-0.202
K73: BC550 | N73: y = 92168x-0.201
K74: BC600 | N74: y = 166875x-0.201
K77: This table shows the static rated capacities of the AE couplings. Use these values when: Duty cycle is very low (less than 1 hour per day) or when the rotation speed is very low (less than 100 rpm)
K78: NTN ref | L78: Static load and non reversing and minimal starts & stops (Nm) | M78: Static load and reversing and frequent starts & stops (Nm)
J79: TCAE 0 | K79: BJ 75 DS | L79: 588 | M79: 392
J80: TCAE 1 | K80: BJ 95 DS | L80: 1,130 | M80: 637
J81: TCAE 2 | K81: BJ 125 DS | L81: 2,750 | M81: 1,470
J82: TCAE 3 | K82: BJ 150 DS | L82: 4,710 | M82: 2,890
J83: TCAE 4 | K83: BJ 175 DS | L83: 6,720 | M83: 4,020
J84: TCAE 5 | K84: BJ 200 DS | L84: 11,200 | M84: 5,880
J85: TCAE 6 | K85: BJ 225 DS | L85: 14,700 | M85: 7,550
J86: TCAE 7 | K86: BJ 250 DS | L86: 20,700 | M86: 10,700
J87: TCAE 8 | K87: BJ 300 DS | L87: 29,100 | M87: 15,800
J88: TCAE 9 | K88: DO J350 | L88: 0.00 | M88: 22,900
J89: TCAE 10 | K89: DOJ 400 | L89: 0.00 | M89: 34,100
J90: TCAE 11 | K90: DOJ 450 | L90: 0.00 | M90: 48,500
J91: TCAE 12 | K91: DOJ 500 | L91: 0.00 | M91: 66,800
J92: TCAE 13 | K92: DOJ 550 | L92: 0.00 | M92: 89,100
J93: TCAE 14 | K93: DOJ 625 | L93: 0.00 | M93: 116,000

Sheet Model tables (hidden)
A1: Model tables
A2: From initial selection
A3: life reqd 1yr | B3: =+Formulas!D6 -> 0 | C3: hrs
A4: life reqd 1yr | B4: =+Formulas!D7 -> 0 | C4: hrs
A5: life reqd 1yr | B5: =+Formulas!D8 -> 0 | C5: hrs
E6: R series | M6: L series | U6: CM series | AC6: S series | AK6: HD Series
E7: Model | F7: D.B.S.E. | H7: TCAE MODEL | I7: LIFE hrs | J7: weight | K7: dia | M7: Model | N7: D.B.S.E. | P7: TCAE MODEL | Q7: LIFE hrs | R7: weight | S7: dia | U7: Model | V7: D.B.S.E. | X7: TCAE MODEL | Y7: LIFE hrs | Z7: weight | AA7: dia | AC7: Model | AD7: BORE d | AE7: TCAE MODEL | AF7: LIFE hrs | AG7: weight | AH7: dia
A8: Coupling | B8: limit torque | C8: life calc hrs | F8: min | G8: max 1 | J8: kgs | K8: mm | N8: max 1 | O8: max 2 | R8: kgs | S8: mm | V8: max 1 | W8: max 2 | Z8: kgs | AA8: mm | AD8: max | AG8: kgs | AH8: mm | AK8: Model | AL8: TCAE | AM8: Speed Max
A9: BC75 | B9: 86 | C9: 0 | E9: BC75 - R | F9: 82 | G9: 90 | H9: TCAE-0-R | I9: =+Formulas!C12 ->  | J9: 4 | K9: 117 | M9: BC75 - L | N9: 90 | O9: 1500 | P9: TCAE-0-L | Q9: =+Formulas!C12 ->  | R9: L dependant | S9: 117 | U9: DOJ350 - CM | V9: 500 | W9: 2500 | X9: TCAE-09-CM | Y9: =+Formulas!C24 ->  | Z9: L dependant | AA9: 336 | AC9: BC225 - F | AD9: =+Formulas!D49 -> 60 | AE9: TCAE-06-S | AF9: =+Formulas!C49 ->  | AG9: 30 | AH9: 244 | AK9: DOX 225F | AL9: TCAE-04-HD | AM9: 3000
A10: BJ095 | B10: 186 | C10: 0 | E10: BJ095 - R | F10: 130 | G10: 147 | H10: TCAE-1-R | I10: =+Formulas!C13 ->  | J10: 9 | K10: 148 | M10: BJ095 - L | N10: 147 | O10: 1800 | P10: TCAE-1-L | Q10: =+Formulas!C13 ->  | R10: L dependant | S10: 148 | U10: DOJ400 - CM | V10: 550 | W10: 2500 | X10: TCAE-10-CM | Y10: =+Formulas!C25 ->  | Z10: L dependant | AA10: 376 | AC10: BC240 - F | AD10: =+Formulas!D50 -> 80 | AE10: TCAE-07-S | AF10: =+Formulas!C50 ->  | AG10: 39 | AH10: 272 | AK10: DOX 250F | AL10: TCAE-05-HD | AM10: 3000
A11: BJ125 | B11: 463 | C11: 2 | E11: BJ125 - R | F11: 136 | G11: 162 | H11: TCAE-2-R | I11: =+Formulas!C14 ->  | J11: 15 | K11: 178 | M11: BJ125 - L | N11: 162 | O11: 2000 | P11: TCAE-2-L | Q11: =+Formulas!C14 ->  | R11: L dependant | S11: 178 | U11: DOJ450 - CM | V11: 600 | W11: 3000 | X11: TCAE-11-CM | Y11: =+Formulas!C26 ->  | Z11: L dependant | AA11: 420 | AC11: BC287 - F | AD11: =+Formulas!D51 -> 90 | AE11: TCAE-08-S | AF11: =+Formulas!C51 ->  | AG11: 50 | AH11: 292 | AK11: DOX 285F | AL11: TCAE-06-HD | AM11: 3000
A12: BJ150 | B12: 782 | C12: 10 | E12: BJ150 - R | F12: 240 | G12: 270 | H12: TCAE-3-R | I12: =+Formulas!C15 ->  | J12: 32 | K12: 215 | M12: BJ150 - L | N12: 270 | O12: 2000 | P12: TCAE-3-L | Q12: =+Formulas!C15 ->  | R12: L dependant | S12: 215 | U12: DOJ500 - CM | V12: 650 | W12: 3000 | X12: TCAE-12-CM | Y12: =+Formulas!C27 ->  | Z12: L dependant | AA12: 462 | AC12: BC350 - F | AD12: =+Formulas!D52 -> 130 | AE12: TCAE-09-S | AF12: =+Formulas!C52 ->  | AG12: 74 | AH12: 336 | AK12: DOX 300F | AL12: TCAE-07-HD | AM12: 3000
A13: BJ175 | B13: 1184 | C13: 35 | E13: BJ175 - R | F13: 276 | G13: 285 | H13: TCAE-4-R | I13: =+Formulas!C16 ->  | J13: 46 | K13: 253 | M13: BJ175 - L | N13: 285 | O13: 2000 | P13: TCAE-4-L | Q13: =+Formulas!C16 ->  | R13: L dependant | S13: 253 | U13: DOJ550 - CM | V13: 700 | W13: 3000 | X13: TCAE-13-CM | Y13: =+Formulas!C28 ->  | Z13: L dependant | AA13: 504 | AC13: BC410 - F | AD13: =+Formulas!D53 -> 145 | AE13: TCAE-10-S | AF13: =+Formulas!C53 ->  | AG13: 103 | AH13: 376 | AK13: DOX 315F | AL13: TCAE-08-HD | AM13: 3000
A14: BJ200 | B14: 1856 | C14: 133 | E14: BJ200 - R | F14: 276 | G14: 300 | H14: TCAE-5-R | I14: =+Formulas!C17 ->  | J14: 58 | K14: 278 | M14: BJ200 - L | N14: 300 | O14: 2000 | P14: TCAE-5-L | Q14: =+Formulas!C17 ->  | R14: L dependant | S14: 278 | U14: DOJ625 - CM | V14: 700 | W14: 3000 | X14: TCAE-14-CM | Y14: =+Formulas!C29 ->  | Z14: L dependant | AA14: 580 | AC14: BC450 - F | AD14: =+Formulas!D54 -> 180 | AE14: TCAE-11-S | AF14: =+Formulas!C54 ->  | AG14: 137 | AH14: 420 | AK14: DOX 350F | AL14: TCAE-09-HD | AM14: 3000
A15: BJ225 | B15: 2552 | C15: 346 | E15: BJ225 - R | F15: 291 | G15: 312 | H15: TCAE-6-R | I15: =+Formulas!C18 ->  | J15: 74 | K15: 300 | M15: BJ225 - L | N15: 312 | O15: 2000 | P15: TCAE-6-L | Q15: =+Formulas!C18 ->  | R15: L dependant | S15: 300 | U15: N/A | AC15: BC500 - F | AD15: =+Formulas!D55 -> 200 | AE15: TCAE-12-S | AF15: =+Formulas!C55 ->  | AG15: 181 | AH15: 462 | AK15: DOX 390F | AL15: TCAE-10-HD | AM15: 3000
A16: BJ250 | B16: 3652 | C16: 1,015 | E16: BJ250 - R | F16: 310 | G16: 330 | H16: TCAE-7-R | I16: =+Formulas!C19 ->  | J16: 103 | K16: 330 | M16: BJ250 - L | N16: 330 | O16: 2000 | P16: TCAE-7-L | Q16: =+Formulas!C19 ->  | R16: L dependant | S16: 330 | AC16: BC550 - F | AD16: =+Formulas!D56 -> 190 | AE16: TCAE-13-S | AF16: =+Formulas!C56 ->  | AG16: 226 | AH16: 504 | AK16: DOX440F | AL16: TCAE-11-HD | AM16: 2500
A17: BJ300 | B17: 4779 | C17: 2,276 | E17: BJ300 - R | F17: 326 | G17: 344 | H17: TCAE-8-R | I17: =+Formulas!C20 ->  | J17: 116 | K17: 370 | M17: BJ300 - L | N17: 344 | O17: 2000 | P17: TCAE-8-L | Q17: =+Formulas!C20 ->  | R17: L dependant | S17: 370 | AC17: BC600 - F | AD17: =+Formulas!D57 -> 250 | AE17: TCAE-14-S | AF17: =+Formulas!C57 ->  | AG17: 274 | AH17: 548 | AK17: DOX 490F | AL17: TCAE-12-HD | AM17: 2500
A18: DOJ350 | B18: 7693 | C18: 8,374 | E18: N/A | F18: 500 | G18: 500 | H18: use S or CM series | M18: N/A | AC18: N/A | AK18: DOX550F | AL18: TCAE-13-HD | AM18: 2000
A19: DOJ400 | B19: 9526 | C19: 15,903 | E19: =IF(E20=E9,E9,INDEX(E9:E17,MATCH(E20,E9:E17,0)-1,1)) ->  | F19: LESSER | M19: =IF(M20=M9,M9,INDEX(M9:M17,MATCH(M20,M9:M17,0)-1,1)) ->  | N19: LESSER | U19: =IF(U20=U9,U9,INDEX(U9:U14,MATCH(U20,U9:U14,0)-1,1)) ->  | V19: LESSER | AC19: =IF(AC20=AC9,AC9,INDEX(AC9:AC17,MATCH(AC20,AC9:AC17,0)-1,1)) ->  | AD19: LESSER | AK19: DOX625F | AL19: TCAE-14-HD | AM19: 2000
A20: DOJ450 | B20: 12132 | C20: 32,851 | E20: =+IF(Formulas!$D$7<'Model tables'!I9,'Model tables'!E9,+IF(Formulas!$D$7<'Model tables'!I10,'Model tables'!E10,+IF(Formulas!$D$7<'Model tables'!I11,'Model tables'!E11,+IF(Formulas!$D$7<'Model tables'!I12,'Model tables'!E12,+IF(Formulas!$D$7<'Model tables'!I13,'Model tables'!E13,+IF(Formulas!$D$7<'Model tables'!I14,'Model tables'!E14,+IF(Formulas!$D$7<'Model tables'!I15,'Model tables'!E15,+IF(Formulas!$D$7<'Model tables'!I16,'Model tables'!E16,+IF(Formulas!$D$7<'Model tables'!I17,'Model tables'!E17,E18))))))))) ->  | F20: IDEAL | M20: =+IF(Formulas!$D$7<'Model tables'!Q9,'Model tables'!M9,+IF(Formulas!$D$7<'Model tables'!Q10,'Model tables'!M10,+IF(Formulas!$D$7<'Model tables'!Q11,'Model tables'!M11,+IF(Formulas!$D$7<'Model tables'!Q12,'Model tables'!M12,+IF(Formulas!$D$7<'Model tables'!Q13,'Model tables'!M13,+IF(Formulas!$D$7<'Model tables'!Q14,'Model tables'!M14,+IF(Formulas!$D$7<'Model tables'!Q15,'Model tables'!M15,+IF(Formulas!$D$7<'Model tables'!Q16,'Model tables'!M16,+IF(Formulas!$D$7<'Model tables'!Q17,'Model tables'!M17,M18))))))))) ->  | N20: IDEAL | U20: =+IF(Formulas!$D$7<'Model tables'!Y9,'Model tables'!U9,+IF(Formulas!$D$7<'Model tables'!Y10,'Model tables'!U10,+IF(Formulas!$D$7<'Model tables'!Y11,'Model tables'!U11,+IF(Formulas!$D$7<'Model tables'!Y12,'Model tables'!U12,+IF(Formulas!$D$7<'Model tables'!Y13,'Model tables'!U14,+IF(Formulas!$D$7<'Model tables'!Y14,'Model tables'!U13,U15)))))) ->  | V20: IDEAL | AC20: =+IF(Formulas!$D$7<'Model tables'!AF9,'Model tables'!AC9,+IF(Formulas!$D$7<'Model tables'!AF10,'Model tables'!AC10,+IF(Formulas!$D$7<'Model tables'!AF12,'Model tables'!AC11,+IF(Formulas!$D$7<'Model tables'!AF11,'Model tables'!AC12,+IF(Formulas!$D$7<'Model tables'!AF13,'Model tables'!AC13,+IF(Formulas!$D$7<'Model tables'!AF14,'Model tables'!AC14,+IF(Formulas!$D$7<'Model tables'!AF15,'Model tables'!AC15,+IF(Formulas!$D$7<'Model tables'!AF16,'Model tables'!AC16,+IF($B$4<AF17,AC17,AC18))))))))) ->  | AD20: IDEAL
A21: DOJ500 | B21: 20911 | C21: 168,193 | E21: =IF(E20=E17,E17,INDEX(E9:E17,MATCH(E20,E9:E17,0)+1,1)) ->  | F21: GREATER | M21: =IF(M20=M17,M17,INDEX(M9:M17,MATCH(M20,M9:M17,0)+1,1)) ->  | N21: GREATER | U21: =IF(U20=U14,U14,INDEX(U9:U14,MATCH(U20,U9:U14,0)+1,1)) ->  | V21: GREATER | AC21: =IF(AC20=AC17,AC17,INDEX(AC9:AC17,MATCH(AC20,AC9:AC17,0)+1,1)) ->  | AD21: GREATER
A22: DOJ550 | B22: 28613 | C22: 430,904 | E22: DBSE | M22: DBSE | U22: DBSE
A23: DOJ625 | B23: 37939 | C23: 1,004,571 | E23: min | F23: max | M23: min | N23: max | U23: min | V23: max
E24: =+VLOOKUP(E20,E9:G18,2) ->  | F24: =+VLOOKUP(E20,E9:G18,3) ->  | M24: =+VLOOKUP(M20,M9:O17,2) ->  | N24: =+VLOOKUP(M20,M9:O17,3) ->  | U24: =+VLOOKUP(U20,U9:W17,2) ->  | V24: =+VLOOKUP(U20,U9:W17,3) -> 
A25: Determine final selection based on shaft details | X25: =INDEX(A12:A29,MATCH(G7,A12:A29,0)-1,1) -> 
A26: Given from data entry | AH26: max shaft dia | AK26: FINAL SELECTION
A27: motor shaft diameter | C27: =+DriveShaftdia. -> 0 | D27: mm | G27: Arg 1 | AD27: Arg 1 | AE27: =+IF(AD28=1,"S Series Required",0) ->  | AH27: =+MAX(C27:C29) -> 0 | AI27: check S series against life required | AN27: check S series against life shaft diameter size | AO27: TCAE model
A28: driven shaft diameter | C28: =+DrivenShaftdia. -> 0 | D28: mm | F28: "S" series | G28: =+IF(C30<E24,1,0) ->  | AC28: "S" series | AD28: =+IF(G33<>1,+IF(G28=1,1,+IF(V28=1,1,0))) ->  | AE28: Selected | AF28: =+IF(AD28=1,+IF(AH27<=AD9,AC9,+IF(AH27<=AD10,AC10,+IF(AH27<=AD11,AC11,+IF(AH27<=AD12,AC12,+IF(AH27<=AD13,AC13,+IF(AH27<=AD14,AC14,+IF(AH27<=AD15,AC15,+IF(AH27<=AD16,AC16,+IF(AH27<=AD17,AC17,AC18)))))))))) ->  | AG28: LESSER | AH28: =+VLOOKUP(AF28,AC9:AF17,4) ->  | AI28: =+IF(AH28<B3,"Larger model required","OK") ->  | AK28: =+IF(AI28<>"OK",AC19,AF28) ->  | AL28: LESSER | AM28: =+VLOOKUP(AK28,AC9:AF17,4) ->  | AN28: =+IF(+VLOOKUP(AK28,AC9:AD17,2)>=AH27,"OK","check shaft diameter") ->  | AO28: =+VLOOKUP(AK28,AC9:AE17,3) -> 
A29: gearbox shaft diameter | C29: =+gearshaftdia -> 0 | D29: mm | AF29: =+IF(AD28=1,+IF(AH27<=AD9,AC9,+IF(AH27<=AD10,AC10,+IF(AH27<=AD11,AC11,+IF(AH27<=AD12,AC12,+IF(AH27<=AD13,AC13,+IF(AH27<=AD14,AC14,+IF(AH27<=AD15,AC15,+IF(AH27<=AD16,AC16,+IF(AH27<=AD17,AC17,AC18)))))))))) ->  | AG29: IDEAL | AH29: =+VLOOKUP(AF29,AC9:AF17,4) ->  | AI29: =+IF(AH29<B4,"Larger model required","OK") ->  | AK29: =+IF(AI29<>"OK",AC20,AF29) ->  | AL29: IDEAL | AM29: =+VLOOKUP(AK29,AC9:AF17,4) ->  | AN29: =+IF(+VLOOKUP(AK29,AC9:AD17,2)>=AH27,"OK","check shaft diameter") ->  | AO29: =+VLOOKUP(AK29,AC9:AE17,3) -> 
A30: DBSE | C30: =+DBSE. -> 0 | D30: mm | AF30: =+IF(AD28=1,+IF(AH27<=AD9,AC9,+IF(AH27<=AD10,AC10,+IF(AH27<=AD11,AC11,+IF(AH27<=AD12,AC12,+IF(AH27<=AD13,AC13,+IF(AH27<=AD14,AC14,+IF(AH27<=AD15,AC15,+IF(AH27<=AD16,AC16,+IF(AH27<=AD17,AC17,AC18)))))))))) ->  | AG30: GREATER | AH30: =+VLOOKUP(AF30,AC9:AF17,4) ->  | AI30: =+IF(AH30<B5,"Larger model required","OK") ->  | AK30: =+IF(AI30<>"OK",AC21,AF30) ->  | AL30: GREATER | AM30: =+VLOOKUP(AK30,AC9:AF17,4) ->  | AN30: =+IF(+VLOOKUP(AK30,AC9:AD17,2)>=AH27,"OK","check shaft diameter") ->  | AO30: =+VLOOKUP(AK30,AC9:AE17,3) -> 
G32: Arg 2 | N32: Arg 2 | V32: Arg 2 | AD32: Arg 2 | AE32: =+IF(AD33=1,"R series Required",0) -> 
F33: "R" series | G33: =+IF(C30<=F24,+IF(C30>=E24,1,0)) ->  | M33: "R" series | N33: =+IF(C30<=N24,+IF(H32>=M24,1,0)) ->  | U33: "R" series | V33: =+IF(C30<=V24,+IF(P32>=U24,1,0)) ->  | AC33: "R" series | AD33: =+IF(G33=1,1,0) ->  | AE33: Selected | AF33: =+IF(AD33=1,+VLOOKUP(E19,E9:H18,4)) ->  | AG33: LESSER | AH33: =+VLOOKUP(AF33,H9:I17,2) -> 
AF34: =+IF(AD33=1,+VLOOKUP(E20,E9:H18,4)) ->  | AG34: IDEAL | AH34: =+VLOOKUP(AF34,H9:I17,2) -> 
AF35: =+IF(AD33=1,+VLOOKUP(E21,E9:H18,4)) ->  | AG35: GREATER | AH35: =+VLOOKUP(AF35,H9:I17,2) -> 
G37: Arg 3 | N37: Arg 3 | V37: Arg 3 | AD37: Arg 3 | AE37: =+IF(AD38=1,"L series Required",0) -> 
F38: "L" series | G38: =+IF(C30<=N24,+IF(C33>=M24,1,0)) ->  | M38: "L" series | N38: =+IF(C30<=N24,+IF(C30>=M24,+IF(M20<>"N/A",1,0))) ->  | U38: "L" series | V38: =+IF(C30<=V24,+IF(C30>=U24,+IF(M20<>"N/A",1,0))) ->  | AC38: "L" series | AD38: =+IF(N38=1,1,0) ->  | AE38: Selected | AF38: =+IF(AD38=1,+VLOOKUP(M19,M9:P17,4)) ->  | AG38: LESSER | AH38: =+VLOOKUP(AF38,P9:Q17,2) -> 
AF39: =+IF(AD38=1,+VLOOKUP(M20,M9:P17,4)) ->  | AG39: IDEAL | AH39: =+VLOOKUP(AF39,P9:Q17,2) -> 
AF40: =+IF(AD38=1,+VLOOKUP(M21,M9:P17,4)) ->  | AG40: GREATER | AH40: =+VLOOKUP(AF40,P9:Q17,2) -> 
G42: Arg 4 | N42: Arg 4 | V42: Arg 4 | AD42: Arg 4 | AE42: =+IF(AD43=1,"CM series Required",0) -> 
F43: "CM" series | G43: =+IF(E20="n/a",0) ->  | M43: "CM" series | N43: =+IF(M20="n/a",0) ->  | U43: "CM" series | V43: =+IF(C30<=V24,+IF(C30>=U24,+IF(E20="N/A",+IF(M20="N/A",1,"N/A")))) ->  | AC43: "CM" series | AD43: =+IF(V43=1,1,0) ->  | AE43: Selected | AF43: =+IF(AD43=1,+VLOOKUP(U19,U9:X14,4)) ->  | AG43: LESSER | AH43: =+VLOOKUP(AF43,X9:Y14,2) -> 
AF44: =+IF(AD43=1,+VLOOKUP(U20,U9:X14,4)) ->  | AG44: IDEAL | AH44: =+VLOOKUP(AF44,X9:Y14,2) -> 
AF45: =+IF(AD43=1,+VLOOKUP(U21,U9:X14,4)) ->  | AG45: GREATER | AH45: =+VLOOKUP(AF45,X9:Y14,2) -> 
I48: WEIGHT | J48: SHAFT SIZE / BORE SIZE | N48: DIAMETER | O48: TAPER LOCK
I49: kg | J49: mm | M49: inch | N49: mm | O49: #
H50: TCAE-0 | I50: 4 | J50: 14 to 50 | M50: 0.75 to 2.0 | N50: 117 | O50: 1615
A51: Arg 1 - defines if S series or not based on DBSE <min | H51: TCAE-1 | I51: 9 | J51: 16 to 60 | M51: 0.75 to 2.5 | N51: 148 | O51: 2517
A52: Arg 2 - defines if R series or not based on DBSE >min and <max1 | H52: TCAE-2 | I52: 15 | J52: 16 to 60 | M52: 0.75 to 2.5 | N52: 178 | O52: 2517
A53: Arg 3 - defines if L series or not based on DBSE >max1 and <max2 | H53: TCAE-3 | I53: 32 | J53: 25 to 75 | M53: 1.0 to 3.0 | N53: 215 | O53: 3020
A54: Arg 4 - defines if CM series or not based on model size N/A | H54: TCAE-4 | I54: 46 | J54: 35 to 90 | M54: 1.375 to 3.5 | N54: 253 | O54: 3525
H55: TCAE-5 | I55: 58 | J55: 35 to 90 | M55: 1.375 to 3.5 | N55: 278 | O55: 3525
H56: TCAE-6 | I56: 74 | J56: 35 to 90 | M56: 1.375 to 3.5 | N56: 300 | O56: 3525
H57: TCAE-7 | I57: 103 | J57: 35 to 90 | M57: 1.375 to 3.5 | N57: 330 | O57: 3525
H58: TCAE-8 | I58: 116 | J58: 35 to 90 | M58: 1.375 to 3.5 | N58: 370 | O58: 3525
H59: TCAE-9-CM | I59: n/a | J59: 170 | N59: 336 | O59: bore & key
H60: TCAE-10-CM | I60: n/a | J60: 190 | N60: 376 | O60: bore & key
H61: TCAE-11-CM | I61: n/a | J61: 210 | N61: 420 | O61: bore & key
H62: TCAE-12-CM | I62: n/a | J62: 235 | N62: 462 | O62: bore & key
H63: TCAE-13-CM | I63: n/a | J63: 250 | N63: 504 | O63: bore & key
H64: TCAE-14-CM | I64: n/a | J64: 290 | N64: 580 | O64: bore & key

Sheet Daves scratchpad 2 (hidden)
B1: OBJECTIVE:
A2: 2 | B2: Determine the correlation between Service life data and strength data for BJ and DOJ to apply to BCF models
B4: BJ-D Series comparison of dynamic torque to life torques
F5: formulas | L5: Rule 1 | M5: Rule 2 | S5: rpm
B6: Model | C6: static | D6: dyn rev | E6: dyn fwd | F6: static | G6: dyn fwd | H6: dyn rev | J6: rev/static | K6: fwd/static | L6: Dyn fwd | M6: Dyn rev | O6: Model | P6: static | Q6: dyn fwd | R6: dyn rev | S6: 10 | T6: 50 | U6: 100 | V6: 200 | W6: 300 | X6: 400 | Y6: 500 | Z6: 600 | AA6: 800 | AB6: 1000 | AC6: 1500 | AD6: 2000 | AE6: 3000 | AF6: 4000
A7: 1 | B7: BJ75 | C7: 1520 | D7: 392 | E7: 558 | F7: =+(998.24*A7^2)-(2886.5*A7)+4599 -> 2,711 | G7: =+(475.67*A7^2)-(1369.7*A7)+1952.2 -> 1,058 | H7: =+(249.43*(A7^2))-(713.79*A7)+1147.6 -> 683 | J7: =+H7/F7 -> 0.252 | K7: =+H7/G7 -> 0.646 | L7: =+M7/0.54 -> 704 | M7: =0.25*C7 -> 380 | O7: BJ75 | P7: 1520 | Q7: 558 | R7: 392 | S7: 285 | T7: 209 | U7: 183 | V7: 160 | W7: 151 | X7: 140 | Y7: 134 | Z7: 129 | AA7: 122 | AB7: 117 | AC7: 102 | AD7: 93 | AE7: 81 | AF7: 74
A8: 2 | B8: BJ95 | C8: 2500 | D8: 637 | E8: 1,127 | F8: =+(998.24*A8^2)-(2886.5*A8)+4599 -> 2,819 | G8: =+(475.67*A8^2)-(1369.7*A8)+1952.2 -> 1,115 | H8: 718 | J8: =+H8/F8 -> 0.255 | K8: =+H8/G8 -> 0.643 | L8: 1,157 | M8: 625 | O8: BJ95 | P8: 2500 | Q8: 1,127 | R8: 637 | S8: 570 | T8: 415 | U8: 365 | V8: 320 | W8: 300 | X8: 280 | Y8: 270 | Z8: 260 | AA8: 245 | AB8: 234 | AC8: 205 | AD8: 186 | AE8: 162 | AF8: 148
A9: 3 | B9: BJ125 | C9: 5780 | D9: 1470 | E9: 2,744 | F9: 4,924 | G9: 2,124 | H9: 1251 | J9: 0.254 | K9: 0.589 | L9: 2,676 | M9: 1,445 | O9: BJ125 | P9: 5780 | Q9: 2,744 | R9: 1470 | S9: 1,350 | T9: 980 | U9: 860 | V9: 730 | W9: 710 | X9: 660 | Y9: 630 | Z9: 610 | AA9: 580 | AB9: 550 | AC9: 485 | AD9: 440 | AE9: 385 | AF9: 350
A10: 4 | B10: BJ150 | C10: 11564 | D10: 2890 | E10: 4,704 | F10: 9,025 | G10: 4,084 | H10: 2283 | J10: 0.253 | K10: 0.559 | L10: 5,354 | M10: 2,891 | O10: BJ150 | P10: 11564 | Q10: 4,704 | R10: 2890 | S10: 2,300 | T10: 1700 | U10: 1450 | V10: 1300 | W10: 1200 | X10: 1150 | Y10: 1100 | Z10: 1050 | AA10: 980 | AB10: 940 | AC10: 820 | AD10: 750 | AE10: 650 | AF10: 600
A11: 5 | B11: BJ175 | C11: 15680 | D11: 4018 | E11: 6,713 | F11: 15,123 | G11: 6,995 | H11: 3814 | J11: 0.252 | K11: 0.545 | L11: 7,259 | M11: 3,920 | O11: BJ175 | P11: 15680 | Q11: 6,713 | R11: 4018 | S11: 3,650 | T11: 2650 | U11: 2350 | V11: 2050 | W11: 1950 | X11: 1800 | Y11: 1700 | Z11: 1650 | AA11: 1550 | AB11: 1500 | AC11: 1300 | AD11: 1200 | AE11: 1050 | AF11: 940
A12: 6 | B12: BJ200 | C12: 23912 | D12: 5880 | E12: 11,172 | F12: 23,217 | G12: 10,858 | H12: 5844 | J12: 0.252 | K12: 0.538 | L12: 11,070 | M12: 5,978 | O12: BJ200 | P12: 23912 | Q12: 11,172 | R12: 5880 | S12: 5,500 | T12: 4000 | U12: 3500 | V12: 3050 | W12: 2900 | X12: 2700 | Y12: 2550 | Z12: 2500 | AA12: 2350 | AB12: 2250 | AC12: 1950 | AD12: 1800 | AE12: 1550 | AF12: 1400
A13: 7 | B13: BJ225 | C13: 29694 | D13: 7546 | E13: 14,700 | F13: 33,307 | G13: 15,672 | H13: 8373 | J13: 0.251 | K13: 0.534 | L13: 13,747 | M13: 7,424 | O13: BJ225 | P13: 29694 | Q13: 14,700 | R13: 7546 | S13: 7,800 | T13: 5700 | U13: 5000 | V13: 4350 | W13: 4150 | X13: 3800 | Y13: 3650 | Z13: 3550 | AA13: 3350 | AB13: 3200 | AC13: 2800 | AD13: 2550 | AE13: 2200 | AF13: 2000
A14: 8 | B14: BJ250 | C14: 42238 | D14: 10682 | E14: 20,678 | F14: 45,394 | G14: 21,437 | H14: 11401 | J14: 0.251 | K14: 0.532 | L14: 19,555 | M14: 10,560 | O14: BJ250 | P14: 42238 | Q14: 20,678 | R14: 10682 | S14: 10,600 | T14: 7800 | U14: 6800 | V14: 6000 | W14: 5700 | X14: 5200 | Y14: 5000 | Z14: 4850 | AA14: 4600 | AB14: 4400 | AC14: 3800 | AD14: 3450 | AE14: 3050 | AF14: 2750
A15: 9 | B15: BJ300 | C15: 63112 | D15: 15780 | E15: 29,106 | F15: 59,478 | G15: 28,154 | H15: 14927 | J15: 0.251 | K15: 0.530 | L15: 29,219 | M15: 15,778 | O15: BJ300 | P15: 63112 | Q15: 29,106 | R15: 15780 | S15: 14,100 | T15: 10300 | U15: 9000 | V15: 7900 | W15: 7500 | X15: 6900 | Y15: 6700 | Z15: 6300 | AA15: 6100 | AB15: 5800 | AC15: 5100 | AD15: 4600 | AE15: 4000 | AF15: 3650
J16: =AVERAGE(J7:J15) -> 0.252 | K16: =AVERAGE(K7:K15) -> 0.569 | L16: fair | M16: good
D17: Rules:
C18: 1 | D18: Dynamic reversing = 0.54 x Dynamic fwd (non reversing)
C19: 2 | D19: Dynamic reversing = 0.25 x Static
M35: Correlation Summary | P35: R2 coeff
M36: torque at rpm | N36: Dynamic Rev | O36: Dynamic Fwd | P36: Static | Q36: Most accurate parameter | R36: Linear equation Dynamic Fwd | T36: inverse equation for dynamic Fwd | W36: Linear equation Dynamic Rev | Y36: inverse equation for dynamic Rev
M37: 10 | N37: 0.9918 | O37: 0.9972 | P37: 0.99 | R37: 2.0185x - 184.87 | T37: (y-184.87)/2.0185 | W37: 1.0617x + 32.667 | Y37: (y-32.667)/1.0617
M38: 100 | N38: 0.9911 | O38: 0.9967 | P38: 0.9892 | R38: 3.1548x - 176.69 | T38: (y-176.69)/3.1548 | W38: 1.6591x + 37.583 | Y38: (y-37.583)/1.6591
M39: 500 | N39: 0.993 | O39: 0.9978 | P39: 0.9913 | R39: 4.2631x - 127.94 | T39: (y-127.94)/4.2631 | W39: 2.2429x + 60.951 | Y39: (y-60.951)/2.2429
M40: 1000 | N40: 0.9912 | O40: 0.9969 | P40: 0.9894 | R40: 4.8915x - 154.63 | T40: (y-154.63)/4.8915 | W40: 2.5724x + 49.256 | Y40: (y-49.256)/2.5724
M41: 2000 | N41: 0.9918 | O41: 0.9971 | P41: 0.9901 | R41: 6.1911x - 199.04 | T41: (y-199.04)/6.1911 | W41: 3.2564x + 24.918 | Y41: (y-24.918)/3.2564
M42: 4000 | N42: 0.9922 | O42: 0.9973 | P42: 0.9904 | R42: 7.8041x - 162.31 | T42: (y-162.31)/7.8041 | W42: 4.1051x + 43.836 | Y42: (y-43.836)/4.1051
M43: AVG | N43: =AVERAGE(N37:N42) -> 0.9919 | O43: =AVERAGE(O37:O42) -> 0.9972 | P43: =AVERAGE(P37:P42) -> 0.9901
B45: DOJ Series comparison of dynamic torque to life torques
E46: rpm
B47: Model | C47: static | D47: dyn rev | E47: 10 | F47: 50 | G47: 100 | H47: 200 | I47: 300 | J47: 400 | K47: 500 | L47: 600 | M47: 800 | N47: 1000 | O47: 1500 | P47: 2000 | Q47: 3000 | R47: 4000
B48: DOJ68 | C48: 1090 | D48: 275 | E48: 180 | F48: 130 | G48: 118 | H48: 104 | I48: 97 | J48: 93 | K48: 89 | L48: 87 | M48: 81 | N48: 78 | O48: 69 | P48: 61 | Q48: 56 | R48: 49
B49: DOJ75 | C49: 1520 | D49: 392 | E49: 250 | F49: 176 | G49: 167 | H49: 148 | I49: 137 | J49: 132 | K49: 125 | L49: 122 | M49: 110 | N49: 110 | O49: 98 | P49: 88 | Q49: 79 | R49: 69
B50: DOJ87 | C50: 2500 | D50: 640 | E50: 400 | F50: 284 | G50: 260 | H50: 230 | I50: 215 | J50: 205 | K50: 196 | L50: 190 | M50: 180 | N50: 172 | O50: 154 | P50: 137 | Q50: 124 | R50: 108
B51: DOJ100 | C51: 3720 | D51: 880 | E51: 580 | F51: 420 | G51: 387 | H51: 343 | I51: 318 | J51: 303 | K51: 289 | L51: 284 | M51: 264 | N51: 255 | O51: 225 | P51: 200 | Q51: 184 | R51: 160
B52: DOJ125 | C52: 5780 | D52: 1470 | E52: 1180 | F52: 862 | G52: 784 | H52: 686 | I52: 637 | J52: 617 | K52: 588 | L52: 568 | M52: 540 | N52: 515 | O52: 460 | P52: 410 | Q52: 370 | R52: 323
B53: DOJ150 | C53: 11560 | D53: 2890 | E53: 2060 | F53: 1470 | G53: 1370 | H53: 1176 | I53: 1120 | J53: 1070 | K53: 1030 | L53: 980 | M53: 930 | N53: 900 | O53: 800 | P53: 715 | Q53: 647 | R53: 558
B54: DOJ175 | C54: 15680 | D54: 4010 | E54: 3330 | F54: 2440 | G54: 2130 | H54: 1870 | I54: 730 | J54: 1630 | K54: 560 | L54: 1520 | M54: 1430 | N54: 1370 | O54: 1190 | P54: 1080 | Q54: 950 | R54: 860
B55: DOJ200 | C55: 23900 | D55: 5880 | E55: 5450 | F55: 3990 | G55: 3500 | H55: 3050 | I55: 2830 | J55: 2670 | K55: 2560 | L55: 2480 | M55: 2350 | N55: 2240 | O55: 1960 | P55: 1781 | Q55: 1558 | R55: 1410
B56: DOJ225 | C56: 29700 | D56: 7200 | E56: 5640 | F56: 4150 | G56: 3630 | H56: 3170 | I56: 2940 | J56: 2770 | K56: 2660 | L56: 2570 | M56: 2430 | N56: 2320 | O56: 2020 | P56: 1870 | Q56: 1640
B57: DOJ250 | C57: 42000 | D57: 11000 | E57: 8820 | F57: 6470 | G57: 5600 | H57: 4960 | I57: 4600 | J57: 4340 | K57: 4150 | L57: 4000 | M57: 3800 | N57: 3600 | O57: 3180 | P57: 2920 | Q57: 2550
B58: DOJ300 | C58: 63000 | D58: 14500 | E58: 11500 | F58: 8400 | G58: 7350 | H58: 6400 | I58: 5900 | J58: 5600 | K58: 5400 | L58: 5200 | M58: 4900 | N58: 4700 | O58: 4120 | P58: 3800 | Q58: 3330
B59: DOJ350 | C59: 92000 | D59: 23000 | E59: 18100 | F59: 13300 | G59: 11600 | H59: 10200 | I59: 9400 | J59: 8900 | K59: 8500 | L59: 8200 | M59: 7800 | N59: 7500 | O59: 6520 | P59: 6020 | Q59: 5260
B60: DOJ400 | C60: 142000 | D60: 34000 | E60: 26900 | F60: 19800 | G60: 17200 | H60: 15000 | I60: 14000 | J60: 13200 | K60: 12700 | L60: 12200 | M60: 11500 | N60: 11000 | O60: 9690 | P60: 8900 | Q60: 7830
B61: DOJ450 | C61: 187000 | D61: 49000 | E61: 38300 | F61: 28100 | G61: 24600 | H61: 21500 | I61: 19900 | J61: 18800 | K61: 18000 | L61: 17400 | M61: 16400 | N61: 15700 | O61: 13800 | P61: 12700 | Q61: 11100
B62: DOJ500 | C62: 260000 | D62: 67000 | E62: 52700 | F62: 38700 | G62: 33800 | H62: 29600 | I62: 27400 | J62: 25800 | K62: 24800 | L62: 24000 | M62: 22600 | N62: 21700 | O62: 19300 | P62: 17500 | Q62: 15300
B63: DOJ550 | C63: 343000 | D63: 89000 | E63: 70400 | F63: 51600 | G63: 45200 | H63: 39500 | I63: 36500 | J63: 34600 | K63: 33100 | L63: 32000 | M63: 30000 | N63: 29000 | O63: 25700 | P63: 23400 | Q63: 20400
B64: DOJ625 | C64: 618000 | D64: 116000 | E64: 99000 | F64: 72700 | G64: 63600 | H64: 55600 | I64: 51400 | J64: 48700 | K64: 46600 | L64: 45000 | M64: 42600 | N64: 40700 | O64: 36300 | P64: 33000 | Q64: 28800
N83: Correlation Summary | Q83: R2 coeff
N84: torque at rpm | O84: Dynamic Rev | P84: Static | Q84: Linear equation Dynamic Rev | U84: inverse equation for dynamic reverse | Y84: inverse equation for dynamic Rev
N85: 10 | O85: 0.9976 | P85: 0.9809 | Q85: 1.2135x + 466.27 | U85: (y-466.27)/1.2135 | Y85: (y-32.667)/1.0617
N86: 50 | O86: 0.9976 | Q86: 1.653x + 478.84 | U86: (y-478.84)/1.653 | Y86: (y-37.583)/1.6591
N87: 100 | O87: 0.9976 | P87: 0.981 | Q87: 1.8899x + 477.35 | U87: (y-477.35)/1.8899 | Y87: (y-60.951)/2.2429
N88: 200 | O88: 0.9976 | Q88: 2.1597x + 538.33 | U88: (y-538.33)/2.1597 | Y88: (y-49.256)/2.5724
N89: 300 | O89: 0.9976 | Q89: 2.3299x + 713.64 | U89: (y-643.72)/2.3321
N90: 400 | O90: 0.9976 | Q90: 2.4675x + 533.71 | U90: (y-463.5)/2.4698
N91: 500 | O91: 0.9975 | P91: 0.9805 | Q91: 2.5698x + 735.4 | U91: (y-735.4)/2.5698 | Y91: (y-24.918)/3.2564
N92: 600 | O92: 0.9977 | Q92: 2.6676x + 520.47 | U92: (y-450.2)/2.6702
N93: 800 | O93: 0.9973 | Q93: 2.8271x + 527.28 | U93: (y-527.28)/2.8271
N94: 1000 | O94: 0.9977 | P94: 0.9807 | Q94: 2.9485x +520.95 | U94: (y-520.95)/2.9485 | Y94: (y-43.836)/4.1051
N95: 1500 | O95: 0.9973 | Q95: 3.3127x + 653.13 | U95: (y-653.13)/3.3127
N96: 2000 | O96: 0.9975 | P96: 0.98 | Q96: 3.6421x + 577.43 | U96: (y-577.43)/3.6421
N97: 3000 | O97: 0.9975 | P97: 0.9814 | Q97: 4.1744x + 526.93 | U97: (y-526.93)/4.1744
N98: 4000 | O98: 0.9913 | P98: 0.9814 | Q98: 4.1933x + 200.65 | U98: (y-200.65)/4.1933
B99: BCF Series comparison of dynamic torque to life torques | N99: AVG | O99: =AVERAGE(O85:O97) -> 0.9975 | P99: =AVERAGE(P85:P97) -> 0.9808
E101: rpm
B102: Model | C102: Static Nm | D102: dyn rev | E102: 10 | F102: 50 | G102: 100 | H102: 200 | I102: 300 | J102: 400 | K102: 500 | L102: 600 | M102: 800 | N102: 1000 | O102: 1500 | P102: 2000 | Q102: 3000
A103: Correlation with DOJ data | B103: BC225F | C103: 16170 | D103: 4753 | E103: =+(D103-466.27)/1.2135 -> 3533 | F103: =+(D103-478.84)/1.653 -> 2586 | G103: =+(D103-477.35)/1.8899 -> 2262 | H103: =+(D103-538.33)/2.1597 -> 1952 | I103: =+(D103-713.64)/2.3299 -> 1734 | J103: =+(D103-533.71)/2.4675 -> 1710 | K103: =+(D103-735.4)/2.5698 -> 1563 | L103: =+(D103-520.47)/2.6676 -> 1587 | M103: =+(D103-527.28)/2.8271 -> 1495 | N103: =+(D103-520.95)/2.9585 -> 1430 | O103: =+(D103-653.13)/3.3127 -> 1238 | P103: =+(D103-577.43)/3.6421 -> 1146 | Q103: =+(D103-526.93)/4.1744 -> 1012
B104: BC240F | C104: 22187 | D104: 6527 | E104: =+(D104-466.27)/1.2135 -> 4994 | F104: =+(D104-478.84)/1.653 -> 3659 | G104: =+(D104-477.35)/1.8899 -> 3201 | H104: =+(D104-538.33)/2.1597 -> 2773 | I104: =+(D104-713.64)/2.3299 -> 2495 | J104: =+(D104-533.71)/2.4675 -> 2429 | K104: =+(D104-665.53)/2.5723 -> 2279 | L104: =+(D104-520.47)/2.6676 -> 2252 | M104: =+(D104-527.28)/2.8271 -> 2122 | N104: =+(D104-520.95)/2.9585 -> 2030 | O104: =+(D104-653.13)/3.3127 -> 1773 | P104: =+(D104-577.43)/3.6421 -> 1634 | Q104: =+(D104-526.93)/4.1744 -> 1437
B105: BC287F | C105: 38328 | D105: 11270 | E105: 8903 | F105: 6528 | G105: 5711 | H105: 4969 | I105: 4531 | J105: 4351 | K105: 4123 | L105: 4030 | M105: 3800 | N105: 3633 | O105: 3205 | P105: 2936 | Q105: 2574
B106: BC350F | C106: 60868 | D106: 17905 | E106: 14371 | F106: 10542 | G106: 9221 | H106: 8041 | I106: 7379 | J106: 7040 | K106: 6702 | L106: 6517 | M106: 6147 | N106: 5876 | O106: 5208 | P106: 4758 | Q106: 4163
B107: BC410F | C107: 90856 | D107: 26725 | E107: 21639 | F107: 15878 | G107: 13888 | H107: 12125 | I107: 11164 | J107: 10615 | K107: 10131 | L107: 9823 | M107: 9267 | N107: 8857 | O107: 7870 | P107: 7179 | Q107: 6276
B108: BC450F | C108: 129360 | D108: 38053 | E108: 30974 | F108: 22731 | G108: 19882 | H108: 17370 | I108: 16026 | J108: 15205 | K108: 14535 | L108: 14070 | M108: 13274 | N108: 12686 | O108: 11290 | P108: 10290
B109: BC500F | C109: 177449 | D109: 52195 | E109: 42628 | F109: 31286 | G109: 27365 | H109: 23918 | I109: 22096 | J109: 20937 | K109: 20032 | L109: 19371 | M109: 18276 | N109: 17466 | O109: 15559 | P109: 14172
B110: BC550F | C110: 236190 | D110: 69462 | E110: 56857 | F110: 41732 | G110: 36502 | H110: 31914 | I110: 29507 | J110: 27934 | K110: 26745 | L110: 25844 | M110: 24384 | N110: 23303 | O110: 20771 | P110: 18913
B111: BC600F | C111: 441980 | D111: 125440 | E111: 102986 | F111: 75597 | G111: 66121 | H111: 57833 | I111: 53533 | J111: 50621 | K111: 48507 | L111: 46828 | M111: 44184 | N111: 42224 | O111: 37669 | P111: 34283
E113: rpm
B114: Model | C114: Static Nm | D114: dyn rev | E114: 10 | F114: 50 | G114: 100 | H114: 200 | I114: 300 | J114: 400 | K114: 500 | L114: 600 | M114: 800 | N114: 1000 | O114: 1500 | P114: 2000 | Q114: 3000 | R114: 4000
A115: Correlation with BJD data | B115: BC225F | C115: 16170 | D115: 4753 | E115: =+(D115-32.667)/1.0617 -> 4446 | G115: =+(D115-37.583)/1.6591 -> 2842 | K115: =+(D115-60.951)/2.2429 -> 2092 | N115: =+(D115-49.256)/2.5724 -> 1829 | P115: =+(D115-24.918)/3.2564 -> 1452 | R115: =+(D115-43.836)/4.1051 -> 1147
B116: BC240F | C116: 22187 | D116: 6527 | E116: =+(D116-32.667)/1.0617 -> 6117 | G116: =+(D116-37.583)/1.6591 -> 3911 | K116: =+(D116-60.951)/2.2429 -> 2883 | N116: 2518 | P116: 1997 | R116: 1579
B117: BC287F | C117: 38328 | D117: 11270 | E117: 10584 | G117: 6770 | K117: 4998 | N117: 4362 | P117: 3453 | R117: 2735
B118: BC350F | C118: 60868 | D118: 17905 | E118: 16834 | G118: 10769 | K118: 7956 | N118: 6941 | P118: 5491 | R118: 4351
B119: BC410F | C119: 90856 | D119: 26725 | E119: 25141 | G119: 16085 | K119: 11888 | N119: 10370 | P119: 8199 | R119: 6500
B120: BC450F | C120: 129360 | D120: 38053 | E120: 35811 | G120: 22913 | K120: 16939 | N120: 14774 | P120: 11678 | R120: 9259
B121: BC500F | C121: 177449 | D121: 52195 | E121: 49131 | G121: 31437 | K121: 23244 | N121: 20271 | P121: 16021 | R121: 12704
B122: BC550F | C122: 236190 | D122: 69462 | E122: 65394 | G122: 41845 | K122: 30943 | N122: 26984 | P122: 21323 | R122: 16910
B123: BC600F | C123: 441980 | D123: 125440 | E123: 118119 | G123: 75585 | K123: 55900 | N123: 48745 | P123: 38513 | R123: 30546

Sheet Daves scratchpad 1 (hidden)
B2: OBJECTIVE:
A3: 1 | B3: Determine the optimum duty factor for TCAE based on real life failed coupling life
A6: Case 1 - Visy | B6: PM3 turbo pump | F6: Case 2 - Visy | G6: PM6 turbo pump | K6: Case 3 - CHH K1 | L6: Kiln 1 Fan 1 | P6: Case 4 - CHH K1 | Q6: Kiln 6 Fan 8 | U6: Case 5 - CHH K1 | V6: Kiln7 Fan 7 | Z6: Case 6 - CHH K1 | AA6: Kiln 9 Fan 7 | AE6: Case 7 - CHH K1 | AF6: Kiln 10 Fan 3
A7: Motor | B7: 18.5 | C7: kW | F7: Motor | G7: 22 | H7: kW | K7: Motor | L7: 15 | M7: kW | P7: Motor | Q7: 15 | R7: kW | U7: Motor | V7: 15 | W7: kW | Z7: Motor | AA7: 15 | AB7: kW | AE7: Motor | AF7: 15 | AG7: kW
A8: speed | B8: 1440 | C8: rpm | F8: speed | G8: 1450 | H8: rpm | K8: speed | L8: 980 | M8: rpm | P8: speed | Q8: 980 | R8: rpm | U8: speed | V8: 980 | W8: rpm | Z8: speed | AA8: 980 | AB8: rpm | AE8: speed | AF8: 980 | AG8: rpm
A9: MSF | B9: 1.25 | F9: MSF | G9: 1.25 | K9: MSF | L9: 1.25 | P9: MSF | Q9: 1.25 | U9: MSF | V9: 1.25 | Z9: MSF | AA9: 1.25 | AE9: MSF | AF9: 1.25
A10: DCF | B10: 1.44 | F10: DCF | G10: 1.44 | K10: DCF | L10: 1.44 | P10: DCF | Q10: 1.44 | U10: DCF | V10: 1.44 | Z10: DCF | AA10: 1.44 | AE10: DCF | AF10: 1.44
A11: AF | B11: 0.95 | F11: AF | G11: 0.95 | K11: AF | L11: 0.95 | P11: AF | Q11: 0.95 | U11: AF | V11: 0.95 | Z11: AF | AA11: 0.95 | AE11: AF | AF11: 0.95
A12: Load capacity | B12: 80% | F12: Load capacity | G12: 80% | K12: Load capacity | L12: 80% | P12: Load capacity | Q12: 80% | U12: Load capacity | V12: 80% | Z12: Load capacity | AA12: 80% | AE12: Load capacity | AF12: 80%
A13: Original result | B13: TCAE | C13: Life hours | D13: Life days | F13: Original result | G13: TCAE | H13: Life hours | I13: Life days | K13: Original result | L13: TCAE | M13: Life hours | N13: Life days | P13: Original result | Q13: TCAE | R13: Life hours | S13: Life days | U13: Original result | V13: TCAE | W13: Life hours | X13: Life days | Z13: Original result | AA13: TCAE | AB13: Life hours | AC13: Life days | AE13: Original result | AF13: TCAE | AG13: Life hours | AH13: Life days
B14: TCAE 1R | C14: 8,842 | D14: =+C14/24 -> 368 | G14: TCAE 1R | H14: 5,328 | I14: 222 | L14: TCAE 1R | Q14: TCAE 1R | V14: TCAE 1R | AA14: TCAE 1R | AF14: TCAE 1R
B15: TCAE 2R | C15: 139,678 | D15: =+C15/24 -> 5,820 | G15: TCAE 2R | H15: 84,192 | I15: 3,508 | L15: TCAE 2R | Q15: TCAE 2R | V15: TCAE 2R | AA15: TCAE 2R | AF15: TCAE 2R
A17: Actual service history | F17: Actual service history | K17: Actual service history | P17: Actual service history | U17: Actual service history | Z17: Actual service history | AE17: Actual service history
A18: Model installed | B18: =+B14 -> TCAE 1R | F18: Model installed | G18: =+G14 -> TCAE 1R | K18: Model installed | L18: =+L14 -> TCAE 1R | P18: Model installed | Q18: =+Q14 -> TCAE 1R | U18: Model installed | V18: =+V14 -> TCAE 1R | Z18: Model installed | AA18: =+AA14 -> TCAE 1R | AE18: Model installed | AF18: =+AF14 -> TCAE 1R
A19: Installed | B19: 2016-12-13 | F19: Installed | G19: 2017-01-01 | K19: Installed | L19: 2017-01-05 | P19: Installed | Q19: 2017-01-05 | U19: Installed | V19: 2017-01-06 | Z19: Installed | AA19: 2016-11-07 | AE19: Installed | AF19: 2017-01-05
A20: Failed | B20: 2019-01-01 | F20: Failed | G20: 2018-05-28 | K20: Failed | L20: 2017-08-19 | P20: Failed | Q20: 2018-03-06 | U20: Failed | V20: 2017-11-23 | Z20: Failed | AA20: 2017-06-21 | AE20: Failed | AF20: 2018-04-10
A21: Operation time | B21: =+B20-B19 -> 749 | F21: Operation time | G21: =+G20-G19 -> 512 | K21: Operation time | L21: =+L20-L19 -> 226 | P21: Operation time | Q21: =+Q20-Q19 -> 425 | U21: Operation time | V21: =+V20-V19 -> 321 | Z21: Operation time | AA21: =+AA20-AA19 -> 226 | AE21: Operation time | AF21: =+AF20-AF19 -> 460
A23: Updated calculation results | C23: hours | D23: days | F23: Updated calculation results | H23: hours | I23: days | K23: Updated calculation results | M23: hours | N23: days | P23: Updated calculation results | R23: hours | S23: days | U23: Updated calculation results | W23: hours | X23: days | Z23: Updated calculation results | AB23: hours | AC23: days | AE23: Updated calculation results | AG23: hours | AH23: days
A24: Load capacity | B24: 80% | F24: Load capacity | G24: 80% | K24: Load capacity | L24: 80% | P24: Load capacity | Q24: 80% | U24: Load capacity | V24: 80% | Z24: Load capacity | AA24: 80% | AE24: Load capacity | AF24: 80%
A25: REDUCED LIFE | B25: TCAE-0-R | C25: 972 | D25: 41 | F25: REDUCED LIFE | G25: TCAE-1-R | H25: 5,821 | I25: 243 | K25: REDUCED LIFE | L25: TCAE-0-R | M25: 945 | N25: 39 | P25: REDUCED LIFE | Q25: TCAE-0-R | R25: 945 | S25: 39 | U25: REDUCED LIFE | V25: TCAE-0-R | W25: 945 | X25: 39 | Z25: REDUCED LIFE | AA25: TCAE-0-R | AB25: 945 | AC25: 39 | AE25: REDUCED LIFE | AF25: TCAE-0-R | AG25: 945 | AH25: 39
A26: RECOMMENDED | B26: TCAE-1-R | C26: 9,646 | D26: 402 | F26: RECOMMENDED | G26: TCAE-2-R | H26: 91,866 | I26: 3,828 | K26: RECOMMENDED | L26: TCAE-1-R | M26: 8,917 | N26: 372 | P26: RECOMMENDED | Q26: TCAE-1-R | R26: 8,917 | S26: 372 | U26: RECOMMENDED | V26: TCAE-1-R | W26: 8,917 | X26: 372 | Z26: RECOMMENDED | AA26: TCAE-1-R | AB26: 8,917 | AC26: 372 | AE26: RECOMMENDED | AF26: TCAE-1-R | AG26: 8,917 | AH26: 372
A27: EXTENDED LIFE | B27: TCAE-2-R | C27: 152,374 | D27: 6,349 | F27: EXTENDED LIFE | G27: TCAE-3-R | H27: 426,637 | I27: 17,777 | K27: EXTENDED LIFE | L27: TCAE-2-R | M27: 130,952 | N27: 5,456 | P27: EXTENDED LIFE | Q27: TCAE-2-R | R27: 130,952 | S27: 5,456 | U27: EXTENDED LIFE | V27: TCAE-2-R | W27: 130,952 | X27: 5,456 | Z27: EXTENDED LIFE | AA27: TCAE-2-R | AB27: 130,952 | AC27: 5,456 | AE27: EXTENDED LIFE | AF27: TCAE-2-R | AG27: 130,952 | AH27: 5,456
A28: Load capacity | B28: 70% | F28: Load capacity | G28: 70% | K28: Load capacity | L28: 85% | P28: Load capacity | Q28: 75% | U28: Load capacity | V28: 85% | Z28: Load capacity | AA28: 85% | AE28: Load capacity | AF28: 75%
A29: REDUCED LIFE | B29: TCAE-0-R | C29: 1,452 | D29: 60 | F29: REDUCED LIFE | G29: TCAE-1-R | H29: 8,689 | I29: 362 | K29: REDUCED LIFE | L29: TCAE-1-R | M29: 7,434 | N29: 310 | P29: REDUCED LIFE | Q29: TCAE-0-R | R29: 1,146 | S29: 48 | U29: REDUCED LIFE | V29: TCAE-1-R | W29: 7,434 | X29: 310 | Z29: REDUCED LIFE | AA29: TCAE-1-R | AB29: 7,434 | AC29: 310 | AE29: REDUCED LIFE | AF29: TCAE-0-R | AG29: 1,146 | AH29: 48
A30: RECOMMENDED | B30: TCAE-1-R | C30: 14,398 | D30: 600 | F30: RECOMMENDED | G30: TCAE-2-R | H30: 137,129 | I30: 5,714 | K30: RECOMMENDED | L30: TCAE-2-R | M30: 109,176 | N30: 4,549 | P30: RECOMMENDED | Q30: TCAE-1-R | R30: 10,822 | S30: 451 | U30: RECOMMENDED | V30: TCAE-2-R | W30: 109,176 | X30: 4,549 | Z30: RECOMMENDED | AA30: TCAE-2-R | AB30: 109,176 | AC30: 4,549 | AE30: RECOMMENDED | AF30: TCAE-1-R | AG30: 10,822 | AH30: 451
A31: EXTENDED LIFE | B31: TCAE-2-R | C31: 227,450 | D31: 9,477 | F31: EXTENDED LIFE | G31: TCAE-3-R | H31: 636,847 | I31: 26,535 | K31: EXTENDED LIFE | L31: TCAE-3-R | M31: 474,732 | N31: 19,780 | P31: EXTENDED LIFE | Q31: TCAE-2-R | R31: 158,927 | S31: 6,622 | U31: EXTENDED LIFE | V31: TCAE-3-R | W31: 474,732 | X31: 19,780 | Z31: EXTENDED LIFE | AA31: TCAE-3-R | AB31: 474,732 | AC31: 19,780 | AE31: EXTENDED LIFE | AF31: TCAE-2-R | AG31: 158,927 | AH31: 6,622
A32: Load capacity | B32: 65% | F32: Load capacity | G32: 62% | K32: Load capacity | L32: 95% | P32: Load capacity | Q32: 76% | U32: Load capacity | V32: 86% | Z32: Load capacity | AA32: 94% | AE32: Load capacity | AF32: 74%
A33: REDUCED LIFE | B33: TCAE-0-R | C33: 1,813 | D33: 76 | F33: REDUCED LIFE | G33: TCAE-0-R | H33: 1,260 | I33: 52 | K33: REDUCED LIFE | L33: TCAE-1-R | M33: 5,325 | N33: 222 | P33: REDUCED LIFE | Q33: TCAE-0-R | R33: 1,102 | S33: 46 | U33: REDUCED LIFE | V33: TCAE-1-R | W33: 7,703 | X33: 321 | Z33: REDUCED LIFE | AA33: TCAE-1-R | AB33: 5,496 | AC33: 229 | AE33: REDUCED LIFE | AF33: TCAE-0-R | AG33: 1,194 | AH33: 50
A34: RECOMMENDED | B34: TCAE-1-R | C34: 17,983 | D34: 749 | F34: RECOMMENDED | G34: TCAE-1-R | H34: 12,504 | I34: 521 | K34: RECOMMENDED | L34: TCAE-2-R | M34: 78,201 | N34: 3,258 | P34: RECOMMENDED | Q34: TCAE-1-R | R34: 10,400 | S34: 433 | U34: RECOMMENDED | V34: TCAE-2-R | W34: 113,121 | X34: 4,713 | Z34: RECOMMENDED | AA34: TCAE-2-R | AB34: 80,723 | AC34: 3,363 | AE34: RECOMMENDED | AF34: TCAE-1-R | AG34: 11,266 | AH34: 469
A35: EXTENDED LIFE | B35: TCAE-2-R | C35: 284,079 | D35: 11,837 | F35: EXTENDED LIFE | G35: TCAE-2-R | H35: 197,355 | I35: 8,223 | K35: EXTENDED LIFE | L35: TCAE-3-R | M35: 340,043 | N35: 14,168 | P35: EXTENDED LIFE | Q35: TCAE-2-R | R35: 152,736 | S35: 6,364 | U35: EXTENDED LIFE | V35: TCAE-3-R | W35: 491,889 | X35: 20,495 | Z35: EXTENDED LIFE | AA35: TCAE-3-R | AB35: 351,011 | AC35: 14,625 | AE35: TCAE-0-R | AF35: TCAE-2-R | AG35: 165,458 | AH35: 6,894
C44: Summary
C45: Case # | D45: Plant | E45: Type | F45: %load factor
C46: 1 | D46: Visy | E46: pump | F46: =+B32 -> 65%
C47: 2 | D47: Visy | E47: pump | F47: =+G32 -> 62%
C48: 7 | D48: CHH K10F3 | E48: fan | F48: =+AF32 -> 74%
C49: 4 | D49: CHH K6F8 | E49: fan | F49: =+Q32 -> 76%
C50: 5 | D50: CHH K7F7 | E50: fan | F50: =+V32 -> 86%
C51: 6 | D51: CHH K9F7 | E51: fan | F51: =+AA32 -> 94%
C52: 3 | D52: CHH K1F1 | E52: fan | F52: =+L32 -> 95%
